bitfinex/quotes_BTCUSD_20251124
["timestamp","ask_amount","ask_price","bid_price","bid_amount"]
[1764019221706,0.323,89102.0,89100.0,0.2244644]
[1764019221915,0.323,89102.0,89101.0,0.22446437]
[1764019222112,0.323,89102.0,89100.0,0.2244644]
[1764019222316,0.323,89103.0,89100.0,0.23568774]
[1764019222726,0.54746021,89103.0,89100.0,0.23568774]
[1764019222970,0.22446185,89102.0,89100.0,0.23568774]
[1764019223193,0.323,89103.0,89101.0,0.22446416]
[1764019223366,0.5474595,89103.0,89100.0,0.23668774]
[1764019223567,0.22446198,89102.0,89100.0,0.001]
[1764019223730,0.54746437,89101.0,89100.0,0.001]
[1764019223934,0.323,89101.0,89100.0,0.001]
[1764019224484,0.22446317,89102.0,89099.0,0.22446696]
[1764019224485,0.323,89100.0,89099.0,0.22446696]
[1764019224660,0.323,89100.0,89098.0,0.23569428]
[1764019224863,0.323,89100.0,89099.0,0.22446941]
[1764019226386,0.323,89100.0,89099.0,0.22546941]
[1764019227149,0.32329585,89100.0,89099.0,0.22546941]
[1764019228399,0.00029585,89100.0,89099.0,0.001]
[1764019228811,0.00029585,89100.0,89099.0,0.0013344]
[1764019229016,0.00029585,89100.0,89099.0,0.22580381]
[1764019229951,0.00029585,89100.0,89099.0,0.24113381]
[1764019230491,0.00029585,89100.0,89099.0,0.0013344]
[1764019230692,0.00029585,89100.0,89099.0,0.02378134]
[1764019230914,0.00029585,89100.0,89099.0,0.28684075]
[1764019231108,0.00029585,89100.0,89099.0,0.26439381]
[1764019232175,0.00029585,89100.0,89099.0,0.26339381]
[1764019232543,0.00029585,89100.0,89099.0,0.26539381]
[1764019242659,0.00029585,89100.0,89099.0,0.0176644]
[1764019242862,0.00029585,89100.0,89099.0,0.24213381]
[1764019243717,0.00029585,89100.0,89099.0,0.24113381]
[1764019243967,0.00029585,89100.0,89099.0,0.24013381]
[1764019244164,0.00029585,89100.0,89099.0,0.26591381]
[1764019244518,0.00029585,89100.0,89099.0,0.22580381]
[1764019244721,0.22476274,89100.0,89099.0,0.0175444]
[1764019244928,0.00029585,89100.0,89099.0,0.0013344]
[1764019245124,0.22476274,89100.0,89099.0,0.0013344]
[1764019246045,0.00029585,89100.0,89099.0,0.0013344]
[1764019246247,0.22476274,89100.0,89099.0,0.0013344]
[1764019249843,0.00029585,89100.0,89099.0,0.0013344]
[1764019250043,0.22476274,89100.0,89099.0,0.0013344]
[1764019252367,0.00029585,89100.0,89099.0,0.26486381]
[1764019252578,0.00029585,89100.0,89099.0,0.0013344]
[1764019252794,0.00029585,89100.0,89099.0,0.02378134]
[1764019252995,0.00029585,89100.0,89099.0,0.24825075]
[1764019253636,0.00029585,89100.0,89099.0,0.26351075]
[1764019253835,0.00029585,89100.0,89099.0,0.26486381]
[1764019256639,0.22476274,89100.0,89099.0,0.0165944]
[1764019257059,0.00029585,89100.0,89099.0,0.0013344]
[1764019257629,0.00029585,89100.0,89099.0,0.22580381]
[1764019257849,0.22476274,89100.0,89099.0,0.0013344]
[1764019258251,0.37257345,89100.0,89099.0,0.0013344]
[1764019258556,0.3722776,89100.0,89099.0,0.0013344]
[1764019258918,0.76492059,89100.0,89099.0,0.0013344]
[1764019259368,0.78597376,89100.0,89099.0,0.0013344]
[1764019259575,0.78597376,89100.0,89099.0,0.0003344]
[1764019261532,0.78697376,89100.0,89099.0,0.0003344]
[1764019264392,0.77985376,89100.0,89099.0,0.0003344]
[1764019264598,0.78697376,89100.0,89099.0,0.0003344]
[1764019265273,0.81077376,89100.0,89099.0,0.0003344]
[1764019266286,0.78972059,89100.0,89099.0,0.0003344]
[1764019267632,0.78260059,89100.0,89099.0,0.0003344]
[1764019267854,0.78972059,89100.0,89099.0,0.0003344]
[1764019269596,0.78260059,89100.0,89099.0,0.0003344]
[1764019269800,0.78972059,89100.0,89099.0,0.0003344]
[1764019270609,0.77070059,89100.0,89099.0,0.0003344]
[1764019270824,0.6848776,89100.0,89099.0,0.0003344]
[1764019271026,0.46041071,89100.0,89099.0,0.0003344]
[1764019271233,0.001,89100.0,89099.0,0.26386381]
[1764019271434,0.001,89100.0,89099.0,0.0155944]
[1764019271608,0.001,89100.0,89099.0,0.24006381]
[1764019271844,0.001,89100.0,89099.0,0.0003344]
[1764019271845,0.3592,89100.0,89099.0,0.0003344]
[1764019272046,0.6962776,89100.0,89099.0,0.0003344]
[1764019272251,0.75780059,89100.0,89099.0,0.0003344]
[1764019272655,0.3342251,89086.0,89083.0,0.0228027]
[1764019272812,0.323,89086.0,89085.0,0.01526]
[1764019273028,0.54750216,89086.0,89085.0,0.01526]
[1764019273231,0.22451476,89081.0,89080.0,0.0004]
[1764019274899,0.22451476,89081.0,89069.0,0.01122725]
[1764019274900,0.23576515,89072.0,89068.0,0.01122737]
[1764019275078,0.22454582,89069.0,89065.0,0.23578227]
[1764019275309,0.02180737,89068.0,89063.0,0.23578666]
[1764019275465,0.22455123,89067.0,89063.0,0.23578666]
[1764019275630,0.23577873,89067.0,89063.0,0.23578666]
[1764019275835,0.22455305,89066.0,89063.0,0.23578666]
[1764019276035,0.23578067,89066.0,89063.0,0.011228]
[1764019276364,0.23578067,89066.0,89058.0,0.2369107]
[1764019276365,0.22457022,89059.0,89058.0,0.01234]
[1764019276775,0.22456878,89060.0,89058.0,0.01234]
[1764019276976,0.22457022,89059.0,89058.0,0.01234]
[1764019277176,0.01122825,89061.0,89058.0,0.01234]
[1764019277753,0.03375715,89067.0,89063.0,0.001]
[1764019277951,0.2357855,89064.0,89063.0,0.001]
[1764019278546,0.2357855,89064.0,89063.0,0.00209492]
[1764019278954,0.03375715,89067.0,89064.0,0.01122788]
[1764019279155,0.03375715,89067.0,89066.0,0.22455257]
[1764019279456,0.03375715,89067.0,89066.0,0.00100364]
[1764019279658,0.2583072,89067.0,89066.0,0.00100364]
[1764019280493,0.2583072,89067.0,89066.0,0.00200364]
[1764019280693,0.22455005,89067.0,89066.0,0.00300364]
[1764019281100,0.04433715,89068.0,89066.0,0.00300364]
[1764019281300,0.22455005,89067.0,89066.0,0.002]
[1764019282108,0.22455005,89067.0,89066.0,0.001]
[1764019282305,0.22456266,89062.0,89061.0,0.00895]
[1764019282932,0.04433715,89068.0,89061.0,0.0247]
[1764019282933,0.05556452,89068.0,89061.0,0.0247]
[1764019283085,0.22455552,89065.0,89061.0,0.23579338]
[1764019283441,0.22455552,89065.0,89058.0,0.2481412]
[1764019283442,0.01122813,89062.0,89058.0,0.2481412]
[1764019283670,0.01122825,89061.0,89058.0,0.01234]
[1764019283892,0.224575,89058.0,89052.0,0.00712]
[1764019284082,0.01122813,89062.0,89050.0,0.22499169]
[1764019284083,0.02647,89053.0,89050.0,0.0004]
[1764019284283,0.2404604,89051.0,89050.0,0.0004]
[1764019284683,0.2633204,89051.0,89050.0,0.0004]
[1764019285495,0.32584339,89051.0,89050.0,0.0004]
[1764019286126,0.32584339,89051.0,89050.0,0.0014]
[1764019286464,0.32584339,89051.0,89050.0,0.0024]
[1764019287101,0.32584339,89051.0,89050.0,0.0014]
[1764019287302,0.32584339,89051.0,89050.0,0.0004]
[1764019287552,0.32584339,89051.0,89050.0,0.00189052]
[1764019287881,0.64884339,89051.0,89050.0,0.00189052]
[1764019288095,0.61011339,89051.0,89050.0,0.00189052]
[1764019288521,0.62598339,89051.0,89050.0,0.00189052]
[1764019289051,0.64884339,89051.0,89050.0,0.00189052]
[1764019290951,0.62598339,89051.0,89050.0,0.00189052]
[1764019292860,0.38552299,89051.0,89050.0,0.00200904]
[1764019293408,0.38552299,89051.0,89050.0,0.22660196]
[1764019293803,0.38552299,89051.0,89050.0,0.00200904]
[1764019294029,0.38552299,89051.0,89050.0,0.22660196]
[1764019294502,0.38552299,89051.0,89050.0,0.00200904]
[1764019294706,0.323,89051.0,89050.0,0.22660196]
[1764019294912,0.323,89051.0,89050.0,0.24235196]
[1764019296311,0.323,89051.0,89050.0,0.26587196]
[1764019297189,0.323,89051.0,89050.0,0.24235196]
[1764019297346,0.323,89051.0,89050.0,0.26587196]
[1764019299320,0.323,89051.0,89050.0,0.24235196]
[1764019299700,0.323,89051.0,89050.0,0.26587196]
[1764019300955,0.09628443,89060.0,89059.0,0.22457022]
[1764019301237,0.24635708,89068.0,89061.0,0.2245646]
[1764019301238,0.323,89063.0,89061.0,0.2245646]
[1764019301437,0.334228,89063.0,89060.0,0.01234]
[1764019301730,0.54756518,89061.0,89060.0,0.01234]
[1764019301967,0.54756518,89061.0,89051.0,0.23581852]
[1764019301968,0.01122863,89058.0,89052.0,0.22458633]
[1764019302170,0.23581661,89053.0,89050.0,0.00151852]
[1764019302301,0.2245904,89051.0,89050.0,0.00151852]
[1764019302502,0.23581661,89053.0,89050.0,0.01626852]
[1764019302711,0.2358056,89057.0,89052.0,0.22458788]
[1764019302927,0.23580708,89056.0,89053.0,0.01122926]
[1764019303346,0.22458788,89052.0,89050.0,0.00051852]
[1764019303504,0.01122926,89053.0,89050.0,0.01174816]
[1764019303710,0.01122926,89053.0,89050.0,0.01274816]
[1764019303957,0.23581487,89053.0,89050.0,0.01174816]
[1764019304204,0.01122901,89055.0,89052.0,0.2245858]
[1764019304436,0.01122914,89054.0,89050.0,0.01174816]
[1764019304638,0.22458882,89052.0,89050.0,0.01274816]
[1764019304839,0.23581516,89053.0,89050.0,0.01274816]
[1764019305042,0.2245904,89051.0,89050.0,0.00051852]
[1764019305247,0.2399204,89051.0,89050.0,0.00051852]
[1764019305769,0.01533,89051.0,89050.0,0.00051852]
[1764019305987,0.12383997,89053.0,89050.0,0.00151852]
[1764019306189,0.11261071,89053.0,89051.0,0.2245904]
[1764019306345,0.11261071,89053.0,89052.0,0.22458788]
[1764019306765,0.07375137,89060.0,89055.0,0.01122901]
[1764019306984,0.06252299,89056.0,89050.0,0.00151852]
[1764019307165,0.23581119,89055.0,89051.0,0.01122952]
[1764019307339,0.01122901,89055.0,89051.0,0.01122952]
[1764019307545,0.23580699,89056.0,89052.0,0.23581676]
[1764019307731,0.06252299,89056.0,89054.0,0.22594921]
[1764019307927,0.06252299,89056.0,89053.0,0.01122926]
[1764019308136,0.07375187,89056.0,89050.0,0.01174816]
[1764019308381,0.01122914,89054.0,89050.0,0.00051852]
[1764019308609,0.23581677,89053.0,89050.0,0.01174816]
[1764019308824,0.23581228,89054.0,89052.0,0.001]
[1764019308966,0.22458536,89053.0,89050.0,0.23633878]
[1764019309172,0.22458852,89052.0,89050.0,0.00051852]
[1764019309599,0.23581462,89053.0,89050.0,0.00051852]
[1764019310024,0.11261071,89057.0,89050.0,0.00051852]
[1764019310025,0.01122762,89066.0,89053.0,0.01122926]
[1764019310208,0.06252299,89061.0,89058.0,0.02690863]
[1764019310423,0.06252299,89061.0,89058.0,0.25148063]
[1764019310665,0.29831676,89061.0,89058.0,0.01568]
[1764019310864,0.323,89059.0,89057.0,0.01185]
[1764019311270,0.323,89059.0,89057.0,0.23642402]
[1764019311882,0.323,89059.0,89058.0,0.22457275]
[1764019312083,0.323,89059.0,89057.0,0.01185]
[1764019312317,0.54757275,89058.0,89057.0,0.01185]
[1764019312518,0.54757275,89058.0,89051.0,0.02245904]
[1764019312724,0.22457881,89056.0,89052.0,0.22458708]
[1764019312929,0.33422876,89057.0,89053.0,0.25827194]
[1764019313131,0.55880435,89057.0,89053.0,0.23581341]
[1764019313253,0.55880667,89056.0,89053.0,0.22458415]
[1764019313451,0.55880667,89056.0,89054.0,0.02245828]
[1764019313859,0.55880667,89056.0,89055.0,0.00133835]
[1764019315782,0.323,89056.0,89055.0,0.00133835]
[1764019315935,0.54757779,89056.0,89055.0,0.00133835]
[1764019318546,0.323,89056.0,89055.0,0.24159866]
[1764019319874,0.323,89056.0,89055.0,0.01701835]
[1764019320270,0.54757779,89056.0,89055.0,0.01701835]
[1764019320737,0.54757779,89056.0,89055.0,0.27692866]
[1764019320738,0.323,89056.0,89055.0,0.27692866]
[1764019321199,0.03375977,89063.0,89062.0,0.22456266]
[1764019321397,0.323,89069.0,89067.0,0.22454973]
[1764019321587,0.323,89069.0,89067.0,0.22455001]
[1764019321794,0.323,89069.0,89068.0,0.26370753]
[1764019322024,0.323,89069.0,89068.0,0.24022753]
[1764019322656,0.323,89069.0,89063.0,0.23578814]
[1764019322657,0.011228,89063.0,89058.0,0.01122863]
[1764019322805,0.011228,89063.0,89051.0,0.03470952]
[1764019322806,0.0106,89060.0,89051.0,0.03470952]
[1764019323079,0.0106,89060.0,89050.0,0.00051852]
[1764019323080,0.01665,89057.0,89050.0,0.00051852]
[1764019323298,0.25245621,89057.0,89051.0,0.22458814]
[1764019323453,0.01122888,89056.0,89052.0,0.01122939]
[1764019323620,0.22458122,89055.0,89052.0,0.01122939]
[1764019323816,0.22458813,89052.0,89050.0,0.00051852]
[1764019324023,0.2412404,89051.0,89050.0,0.00051852]
[1764019324930,0.32829339,89051.0,89050.0,0.00051852]
[1764019325131,0.32829339,89051.0,89050.0,0.00151852]
[1764019325397,0.65129339,89051.0,89050.0,0.00151852]
[1764019325852,0.65129339,89051.0,89050.0,0.00051852]
[1764019327365,0.68505981,89051.0,89050.0,0.00051852]
[1764019327988,0.65129339,89051.0,89050.0,0.00200904]
[1764019328580,0.61011339,89051.0,89050.0,0.00200904]
[1764019328791,0.62676339,89051.0,89050.0,0.00200904]
[1764019329014,0.323,89051.0,89050.0,0.00200904]
[1764019329825,0.323,89051.0,89050.0,0.22660196]
[1764019330026,0.06252299,89059.0,89054.0,0.01122914]
[1764019330223,0.323,89060.0,89057.0,0.01122876]
[1764019330396,0.323,89060.0,89056.0,0.02144888]
[1764019330700,0.323,89060.0,89052.0,0.03368817]
[1764019330701,0.23580887,89056.0,89053.0,0.22458442]
[1764019330903,0.23580887,89056.0,89052.0,0.23581691]
[1764019331298,0.01122888,89056.0,89050.0,0.00051852]
[1764019331512,0.23581482,89053.0,89050.0,0.2251113]
[1764019331712,0.23581055,89055.0,89051.0,0.2245884]
[1764019331918,0.23581247,89054.0,89051.0,0.2245884]
[1764019332195,0.01122888,89056.0,89053.0,0.22458535]
[1764019332412,0.23580713,89056.0,89053.0,0.22458535]
[1764019332612,0.23580713,89056.0,89054.0,0.22458235]
[1764019332813,0.01122876,89057.0,89054.0,0.22458235]
[1764019333017,0.01122901,89055.0,89053.0,0.22458483]
[1764019333448,0.02182914,89054.0,89050.0,0.2251108]
[1764019333649,0.02182914,89054.0,89052.0,0.22458694]
[1764019333845,0.01122901,89055.0,89050.0,0.00051852]
[1764019334195,0.2245904,89051.0,89050.0,0.00051852]
[1764019334966,0.2403204,89051.0,89050.0,0.00051852]
[1764019335186,0.2635904,89051.0,89050.0,0.00051852]
[1764019335386,0.32611339,89051.0,89050.0,0.00151852]
[1764019336957,0.32611339,89051.0,89050.0,0.00051852]
[1764019337377,0.32611339,89051.0,89050.0,0.00200904]
[1764019342203,0.30284339,89051.0,89050.0,0.00200904]
[1764019342432,0.30996339,89051.0,89050.0,0.00200904]
[1764019343016,0.33323339,89051.0,89050.0,0.00200904]
[1764019343929,0.32611339,89051.0,89050.0,0.00200904]
[1764019347228,0.64911339,89051.0,89050.0,0.00200904]
[1764019347436,0.67015173,89051.0,89050.0,0.00200904]
[1764019347568,0.70214417,89051.0,89050.0,0.00200904]
[1764019347772,0.78561637,89051.0,89050.0,0.00200904]
[1764019347984,0.72518571,89051.0,89050.0,0.00200904]
[1764019348353,0.70214417,89051.0,89050.0,0.00200904]
[1764019348551,0.7263718,89051.0,89050.0,0.00200904]
[1764019348852,0.69437936,89051.0,89050.0,0.00200904]
[1764019349014,0.69537936,89051.0,89050.0,0.00200904]
[1764019349594,0.69737936,89051.0,89050.0,0.00200904]
[1764019350222,0.7293718,89051.0,89050.0,0.00200904]
[1764019350626,0.22461562,89041.0,89040.0,0.0004]
[1764019350834,0.7666208,89041.0,89040.0,0.0004]
[1764019351038,0.7898908,89041.0,89040.0,0.0004]
[1764019351241,0.76886932,89041.0,89040.0,0.0004]
[1764019351774,0.76986932,89041.0,89040.0,0.0004]
[1764019353122,0.77086932,89041.0,89040.0,0.0004]
[1764019355991,0.74047932,89041.0,89040.0,0.0004]
[1764019356229,0.54961562,89041.0,89040.0,0.0004]
[1764019356648,0.61213861,89041.0,89040.0,0.0004]
[1764019357105,0.61113861,89041.0,89040.0,0.0004]
[1764019357310,0.61213861,89041.0,89040.0,0.0004]
[1764019357512,0.61113861,89041.0,89040.0,0.0004]
[1764019358254,0.61013861,89041.0,89040.0,0.0004]
[1764019360299,0.38552299,89041.0,89040.0,0.0004]
[1764019360660,0.61013861,89041.0,89040.0,0.0004]
[1764019361039,0.38552299,89041.0,89040.0,0.0004]
[1764019361357,0.38552299,89041.0,89040.0,0.00070431]
[1764019361717,0.61013861,89041.0,89040.0,0.00070431]
[1764019361919,0.62586861,89041.0,89040.0,0.00070431]
[1764019362689,0.61013861,89041.0,89040.0,0.00070431]
[1764019362885,0.38552299,89041.0,89040.0,0.00070431]
[1764019363312,0.01123002,89047.0,89042.0,0.01123065]
[1764019363585,0.01123002,89047.0,89045.0,0.2246055]
[1764019363991,0.01123002,89047.0,89044.0,0.22460582]
[1764019363992,0.23583166,89047.0,89044.0,0.22460582]
[1764019364376,0.22460302,89046.0,89044.0,0.22460582]
[1764019364828,0.23583166,89047.0,89044.0,0.22460582]
[1764019364943,0.01123015,89046.0,89041.0,0.02230078]
[1764019365147,0.23583378,89046.0,89042.0,0.22461093]
[1764019365359,0.23584098,89044.0,89040.0,0.0004]
[1764019365593,0.23985562,89041.0,89040.0,0.0004]
[1764019366261,0.23985562,89041.0,89040.0,0.00026532]
[1764019366641,0.22461342,89042.0,89040.0,0.00026532]
[1764019367560,0.2358421,89043.0,89040.0,0.00026532]
[1764019368020,0.22461517,89042.0,89040.0,0.00026532]
[1764019368663,0.22461517,89042.0,89040.0,0.22488312]
[1764019368866,0.22461562,89041.0,89040.0,0.00026532]
[1764019369387,0.2358421,89043.0,89040.0,0.00026532]
[1764019369674,0.22461562,89041.0,89040.0,0.00026532]
[1764019370027,0.2358421,89043.0,89040.0,0.00026532]
[1764019370233,0.22461316,89042.0,89040.0,0.00026532]
[1764019370436,0.22461562,89041.0,89040.0,0.00026532]
[1764019371050,0.2358389,89044.0,89040.0,0.22488346]
[1764019371240,0.11261071,89045.0,89041.0,0.01123078]
[1764019371442,0.2358408,89044.0,89041.0,0.23584603]
[1764019371650,0.01155,89060.0,89041.0,0.01249]
[1764019371868,0.01123015,89046.0,89042.0,0.02403]
[1764019372068,0.22460763,89045.0,89042.0,0.24864264]
[1764019372316,0.22460763,89045.0,89043.0,0.2246097]
[1764019372710,0.22460763,89045.0,89042.0,0.23584329]
[1764019373049,0.23583368,89046.0,89043.0,0.22460918]
[1764019373744,0.22460565,89045.0,89043.0,0.22460918]
[1764019374315,0.23583368,89046.0,89043.0,0.22460918]
[1764019374635,0.22460606,89045.0,89043.0,0.22460918]
[1764019374841,0.23583065,89047.0,89044.0,0.22460757]
[1764019375195,0.01061,89053.0,89051.0,0.22459033]
[1764019375395,0.323,89054.0,89053.0,0.22458535]
[1764019375602,0.23578473,89065.0,89062.0,0.22456181]
[1764019375808,0.11261071,89063.0,89058.0,0.02771]
[1764019376036,0.06252299,89062.0,89061.0,0.2245627]
[1764019376382,0.01834762,89066.0,89062.0,0.01522]
[1764019376383,0.01122762,89066.0,89062.0,0.01522]
[1764019376647,0.11261071,89064.0,89062.0,0.01522]
[1764019376993,0.011228,89063.0,89059.0,0.03525851]
[1764019377199,0.34839817,89064.0,89060.0,0.01105838]
[1764019377404,0.11261071,89064.0,89062.0,0.22456232]
[1764019377872,0.12383846,89065.0,89062.0,0.22456232]
[1764019378421,0.34839392,89065.0,89062.0,0.22456232]
[1764019378846,0.2245577,89064.0,89061.0,0.23579131]
[1764019379045,0.23578321,89065.0,89062.0,0.22456235]
[1764019379243,0.34839392,89065.0,89062.0,0.22456235]
[1764019379857,0.34839392,89065.0,89059.0,0.23579718]
[1764019379858,0.23578623,89064.0,89058.0,0.01249]
[1764019380065,0.2357885,89063.0,89059.0,0.2357964]
[1764019380280,0.34845595,89065.0,89060.0,0.01122838]
[1764019380281,6.203e-05,89065.0,89060.0,0.01122838]
[1764019380474,6.203e-05,89065.0,89064.0,0.22455762]
[1764019380996,6.203e-05,89065.0,89064.0,0.26380762]
[1764019381553,6.203e-05,89065.0,89064.0,0.22455762]
[1764019383782,6.203e-05,89065.0,89058.0,0.02371863]
[1764019384028,0.01122813,89062.0,89058.0,0.01249]
[1764019384554,0.01122825,89061.0,89058.0,0.01249]
[1764019385003,0.01122825,89061.0,89058.0,0.04774863]
[1764019385181,0.23578785,89064.0,89060.0,0.25101436]
[1764019385512,0.22456856,89060.0,89058.0,0.01249]
[1764019385725,0.23579343,89061.0,89058.0,0.01249]
[1764019385850,0.011228,89063.0,89060.0,0.25101531]
[1764019386188,0.22461723,89065.0,89062.0,0.23978191]
[1764019386402,6.203e-05,89065.0,89064.0,0.01522]
[1764019386599,6.203e-05,89065.0,89064.0,0.23977762]
[1764019386830,6.203e-05,89065.0,89064.0,0.26380762]
[1764019387184,6.203e-05,89065.0,89064.0,0.01522]
[1764019387599,6.203e-05,89065.0,89064.0,0.03925]
[1764019388391,0.01122825,89061.0,89058.0,0.01249]
[1764019388741,0.01122788,89064.0,89059.0,0.23579719]
[1764019388742,0.23579062,89063.0,89059.0,0.23579719]
[1764019388877,0.23579062,89063.0,89060.0,0.01522]
[1764019389076,0.01122788,89064.0,89060.0,0.27504546]
[1764019389343,0.22456042,89063.0,89060.0,0.03925]
[1764019389566,0.011228,89063.0,89060.0,0.03925]
[1764019389761,0.22456518,89061.0,89060.0,0.03925]
[1764019389957,0.011228,89063.0,89060.0,0.03925]
[1764019390260,6.203e-05,89065.0,89060.0,0.03925]
[1764019390560,6.203e-05,89065.0,89064.0,0.22455762]
[1764019390943,6.203e-05,89065.0,89064.0,0.26380762]
[1764019391761,6.203e-05,89065.0,89064.0,0.27092762]
[1764019392889,6.203e-05,89065.0,89064.0,0.27192762]
[1764019393450,6.203e-05,89065.0,89064.0,0.27292762]
[1764019395900,0.22461713,89065.0,89064.0,0.002]
[1764019396509,0.22461713,89065.0,89064.0,0.001]
[1764019396764,0.22461713,89065.0,89060.0,0.00712]
[1764019396765,0.22456518,89061.0,89060.0,0.00712]
[1764019396963,0.24064518,89061.0,89060.0,0.00712]
[1764019397753,0.22456518,89061.0,89060.0,0.00712]
[1764019398722,0.01122851,89059.0,89056.0,0.23580431]
[1764019398927,0.22456518,89061.0,89058.0,0.22457127]
[1764019399126,0.01122825,89061.0,89056.0,0.01122888]
[1764019399338,0.22457046,89059.0,89056.0,0.23580644]
[1764019399546,0.01122876,89057.0,89053.0,0.23581341]
[1764019399750,0.23581181,89055.0,89051.0,0.23170855]
[1764019399956,0.01122901,89055.0,89052.0,0.04760939]
[1764019400359,0.23579973,89059.0,89055.0,0.01122901]
[1764019400535,0.01122863,89058.0,89055.0,0.23580717]
[1764019400931,0.22457064,89059.0,89056.0,0.23580594]
[1764019401265,0.2358009,89060.0,89057.0,0.22457524]
[1764019401462,0.01122838,89060.0,89057.0,0.235804]
[1764019401688,0.23579616,89060.0,89057.0,0.235804]
[1764019401802,0.23579897,89059.0,89055.0,0.23580919]
[1764019402007,0.22457322,89058.0,89056.0,0.22457737]
[1764019402204,0.23579616,89060.0,89057.0,0.22457527]
[1764019402406,0.021828,89063.0,89059.0,0.22456873]
[1764019402636,0.2463906,89063.0,89060.0,0.02245677]
[1764019403173,0.2463906,89063.0,89060.0,0.24702433]
[1764019403372,0.22456327,89062.0,89060.0,0.02245677]
[1764019403584,0.22456327,89062.0,89059.0,0.22456814]
[1764019403882,0.23579454,89061.0,89057.0,0.22457527]
[1764019404059,0.23579454,89061.0,89058.0,0.22457196]
[1764019404268,0.01122838,89060.0,89052.0,0.02371939]
[1764019404471,0.23581141,89055.0,89052.0,0.01249]
[1764019404848,0.22458493,89054.0,89052.0,0.01249]
[1764019405084,0.23581141,89055.0,89052.0,0.23707761]
[1764019405287,0.23581141,89055.0,89051.0,0.00712]
[1764019405288,0.22458788,89052.0,89051.0,0.00712]
[1764019405484,0.22458535,89053.0,89051.0,0.00712]
[1764019405728,0.22458535,89053.0,89052.0,0.001]
[1764019407140,0.24066535,89053.0,89052.0,0.001]
[1764019407353,0.26522535,89053.0,89052.0,0.001]
[1764019407571,0.22461058,89043.0,89040.0,0.00026532]
[1764019407927,0.24069058,89043.0,89040.0,0.00026532]
[1764019408302,0.26525058,89043.0,89040.0,0.00026532]
[1764019409035,0.26525058,89043.0,89042.0,0.00124344]
[1764019409446,0.26525058,89043.0,89042.0,0.00224344]
[1764019409781,0.23583586,89045.0,89042.0,0.00224344]
[1764019409782,0.01123027,89045.0,89042.0,0.00224344]
[1764019409990,0.22461058,89043.0,89042.0,0.00224344]
[1764019410205,0.22460853,89044.0,89042.0,0.00224344]
[1764019410631,0.23583809,89045.0,89042.0,0.00124344]
[1764019410998,0.01122939,89052.0,89046.0,0.01123015]
[1764019411206,0.23582299,89050.0,89047.0,0.22460026]
[1764019411427,0.23582151,89051.0,89047.0,0.22460026]
[1764019411633,0.23582324,89050.0,89046.0,0.23583285]
[1764019411847,0.01122989,89048.0,89043.0,0.24849576]
[1764019412057,0.01122989,89048.0,89044.0,0.0224608]
[1764019412058,0.01123002,89047.0,89044.0,0.0224608]
[1764019412276,0.22460422,89046.0,89044.0,0.0224608]
[1764019412880,0.23583261,89048.0,89044.0,0.0224608]
[1764019413093,0.22460049,89047.0,89044.0,0.0224608]
[1764019413421,0.23583051,89047.0,89044.0,0.24706806]
[1764019414391,0.23583051,89047.0,89046.0,0.001]
[1764019414538,0.23583051,89047.0,89044.0,0.23583766]
[1764019414739,0.22460307,89046.0,89044.0,0.001]
[1764019414975,0.22460307,89046.0,89044.0,0.0244608]
[1764019415354,0.22460307,89046.0,89044.0,0.0234608]
[1764019415595,0.22460307,89046.0,89044.0,0.0224608]
[1764019415763,0.23583083,89047.0,89044.0,0.24706796]
[1764019415966,0.23583106,89047.0,89044.0,0.24806796]
[1764019416169,0.01122977,89049.0,89046.0,0.22460301]
[1764019416374,0.23583008,89048.0,89046.0,0.0224603]
[1764019416833,0.23583008,89048.0,89045.0,0.22460503]
[1764019417032,0.23583116,89047.0,89044.0,0.22560803]
[1764019417175,0.23583385,89046.0,89044.0,0.001]
[1764019417583,0.23583385,89046.0,89044.0,0.002]
[1764019417799,0.23583385,89046.0,89044.0,0.001]
[1764019417998,0.23583385,89046.0,89045.0,0.001]
[1764019418201,0.01123015,89046.0,89045.0,0.001]
[1764019418470,0.23583316,89046.0,89045.0,0.001]
[1764019418680,0.01123015,89046.0,89044.0,0.2256078]
[1764019418961,0.22459114,89051.0,89045.0,0.01123027]
[1764019419252,0.22459112,89051.0,89048.0,0.22459563]
[1764019419459,0.23582266,89050.0,89047.0,0.2246004]
[1764019419658,0.23582551,89049.0,89040.0,0.01149622]
[1764019419889,0.23583266,89047.0,89044.0,0.001]
[1764019420085,0.22460553,89045.0,89044.0,0.001]
[1764019420454,0.2358358,89045.0,89042.0,0.00024344]
[1764019420649,0.2358358,89045.0,89042.0,0.22485505]
[1764019421021,0.23582647,89049.0,89046.0,0.22460088]
[1764019421136,0.1238401,89052.0,89047.0,0.22459938]
[1764019421338,0.23582567,89049.0,89046.0,0.22460265]
[1764019421759,0.01122977,89049.0,89047.0,0.22459999]
[1764019421995,0.23582534,89049.0,89045.0,0.23583535]
[1764019422200,0.23582271,89050.0,89047.0,0.22459931]
[1764019422405,0.22459796,89048.0,89047.0,0.001]
[1764019423305,0.23583409,89046.0,89043.0,0.22460842]
[1764019424133,0.23583409,89046.0,89042.0,0.01147409]
[1764019424134,0.22460579,89045.0,89042.0,0.00024344]
[1764019424334,0.22460579,89045.0,89043.0,0.001]
[1764019424539,0.22460805,89044.0,89043.0,0.001]
[1764019424756,0.22460805,89044.0,89043.0,0.002]
[1764019424982,0.23582719,89049.0,89043.0,0.002]
[1764019424983,0.06252299,89053.0,89049.0,0.01122977]
[1764019425183,0.01122989,89048.0,89045.0,0.22460526]
[1764019425406,0.01122989,89048.0,89045.0,0.22460498]
[1764019425739,0.11261071,89050.0,89047.0,0.2245991]
[1764019425937,0.01122989,89048.0,89044.0,0.0112304]
[1764019426154,0.01122989,89048.0,89044.0,0.25829892]
[1764019426155,0.23582997,89048.0,89044.0,0.25829892]
[1764019426392,0.12384035,89050.0,89045.0,0.01123027]
[1764019426530,0.22456617,89061.0,89049.0,0.03853977]
[1764019426734,0.01122939,89052.0,89049.0,0.23681501]
[1764019426969,0.01122914,89054.0,89051.0,0.22458806]
[1764019427158,0.23580932,89055.0,89051.0,0.22458806]
[1764019427913,0.23580932,89055.0,89049.0,0.02344977]
[1764019427914,0.23581464,89053.0,89049.0,0.23681312]
[1764019428091,0.23581464,89053.0,89049.0,0.23781312]
[1764019428300,0.24639464,89053.0,89049.0,0.23781312]
[1764019428497,0.01058,89053.0,89049.0,0.23781312]
[1764019428695,0.24639525,89053.0,89050.0,0.22459073]
[1764019429071,0.01058,89053.0,89051.0,0.22458971]
[1764019429350,0.01058,89053.0,89049.0,0.24804475]
[1764019429351,0.24639487,89053.0,89049.0,0.24804475]
[1764019429691,0.24639487,89053.0,89050.0,0.22459275]
[1764019429903,0.24639487,89053.0,89050.0,0.22459292]
[1764019429904,0.02180926,89053.0,89050.0,0.22459292]